[Event "Austrian Championship 2022"]
[Site "Vienna"]
[Date "2022.08.19"]
[Round "9.20"]
[White "Mayrhuber, Nikola"]
[Black "Marakovits, Nico"]
[Result "0-1"]
[ECO "E51"]
[WhiteElo "2141"]
[BlackElo "2259"]
[Annotator "TA"]
[PlyCount "80"]
[EventDate "2022.08.12"]
[EventType "swiss"]
[EventCountry "AUT"]
[SourceTitle "playchess.com"]
[Source "ChessBase"]
[SourceQuality "1"]
[TimeControl "40/5400+30:1800+30"]

{[%evp 13,80,2,-2,7,6,3,0,6,18,7,16,18,17,2,36,-5,0,0,0,0,8,16,16,8,8,8,35,25,35,6,11,0,0,-4,-22,-3,-12,-129,-104,-191,-186,-236,-228,-865,-842,-795,-767,-2814,-2445,-29980,-29981,-29981,-29982,-29982,-29983,-29983,-29984,-29986,-12840,-12841,-643,-29983,-29984,-29984,-29985,-29985,-29986,-29983,-12840]} 1. d4 {[%emt 0:06:51]} Nf6 {[%emt 0:00:12]} 2. c4 {[%emt 0:00:07]} e6 {[%emt 0:00:15]} 3. Nc3 {[%emt 0:00:06]} Bb4 {[%emt 0:00:04]} 4. Bd2 {[%emt 0:00:03]} O-O {[%emt 0:00:10]} 5. Nf3 {[%emt 0:00:05]} d5 {[%emt 0:01:05]} 6. e3 {[%emt 0:00:41]} b6 {[%emt 0:01:01]} 7. cxd5 {[%emt 0:00:07]} exd5 {[%emt 0:00:05]} 8. Rc1 {[%emt 0:00:03] E51: Nimzo-Indian: Rubinstein: 4...0-0 5 Nf3 d5.} c5 {[%emt 0:12:22]} 9. Be2 {[%emt 0:00:35]} c4 {[%emt 0:02:26]} 10. O-O {[%emt 0:02:28] [#] The position is equal.} Bxc3 $146 {[%emt 0:00:35]} ({Predecessor:} 10... a6 11. a4 Nc6 12. b3 Bxc3 13. Bxc3 b5 14. Ne5 Qd6 15. Bf3 Bf5 16. bxc4 bxc4 {½-½ (65) Aditya,M (2459)-Sethuraman,S (2620) Castelldefels 2021}) 11. Bxc3 {[%emt 0:00:17]} b5 {[%emt 0:02:26]} 12. a4 {[%emt 0:06:15]} a6 {[%emt 0:00:54]} 13. Ne5 {[%emt 0:00:19]} Bb7 {[%emt 0:01:39]} 14. f4 {[%emt 0:18:29]} Ne4 {[%emt 0:05:52]} 15. Bb4 {[%emt 0:02:59]} Re8 {[%emt 0:00:24]} 16. Bf3 {[%emt 0:01:45]} Nc6 {[%emt 0:20:52]} 17. Bxe4 {[%emt 0:01:36]} dxe4 {[%emt 0:00:09]} 18. Nxc6 {[%emt 0:16:32]} Bxc6 {[%emt 0:00:05]} 19. f5 {[%emt 0:00:44]} f6 {[%emt 0:03:49]} 20. Rf4 {[%emt 0:01:29]} Qd5 {[%emt 0:01:32]} 21. Qh5 {[%emt 0:05:24] [#] Strongly threatening Rh4.} Qf7 {[%emt 0:04:55]} 22. Qh3 {[%emt 0:01:14]} a5 {[%emt 0:02:39]} 23. axb5 {[%emt 0:06:16]} axb4 {[%emt 0:06:46]} 24. bxc6 {[%emt 0:00:07]} Rac8 {[%emt 0:00:23][%cal Ba8c8,Bc8c6,Bc6c3][%mdl 32]} 25. Rh4 {[%emt 0:01:29] White is now going downhill.} (25. Qh4 $11 {remains equal.}) 25... h6 $17 {[%emt 0:00:24] White must now prevent ...c3.} 26. Qg3 {[%emt 0:02:43]} (26. Rg4 $17 {was necessary.}) 26... Rxc6 {[%emt 0:07:28]} 27. Rxh6 {[%emt 0:00:11]} (27. d5 $142 Qxd5 28. Rxh6) 27... c3 $19 {[%emt 0:01:57]} 28. bxc3 {[%emt 0:00:58]} (28. h4 b3 29. bxc3) 28... Rxc3 {[%emt 0:01:09]} 29. Rf1 {[%emt 0:08:04]} b3 {[%emt 0:04:33]} 30. Rb1 {[%emt 0:08:42]} Rec8 {[%emt 0:05:54] [#] ( -> ...Rc1+)} 31. Rh4 {[%emt 0:03:23]} Rc1+ {[%emt 0:00:55]} 32. Rxc1 {[%emt 0:00:01]} Rxc1+ {[%emt 0:00:07] KQR-KQR} 33. Kf2 {[%emt 0:00:03]} Rc2+ {[%emt 0:01:57]} 34. Kg1 {[%emt 0:00:43]} Qa7 {[%emt 0:02:14] Active counter play!} 35. h3 {[%emt 0:00:23]} Rc1+ {[%emt 0:00:04]} (35... b2 $142 36. Rxe4 b1=Q+ 37. Kh2 g5 38. Re8+ Kf7 39. Qg4 Kxe8 40. Qh5+ Qf7 41. Qh8+ Kd7 42. Qa8 Qfa2 43. Kg3 Qxa8 44. d5 Qe1+ 45. Kh2 Qb8+ 46. d6 Qxd6#) 36. Kh2 {[%emt 0:00:10]} Qc7 {[%emt 0:00:03]} (36... b2 $142 37. Qd6 Qc7 38. Qxc7 Rxc7 39. Rxe4 b1=Q) 37. Rf4 {[%emt 0:05:59]} b2 {[%emt 0:00:47] Black mates.} 38. Qg6 {[%emt 0:00:04]} Qf7 {[%emt 0:01:56]} ({Not} 38... b1=Q 39. Qe8+ Kh7 40. Qh5+ Kg8 41. Qe8+ Kh7 42. Qh5+ Kg8 43. Qe8+ $11) 39. Rxe4 {[%emt 0:01:56]} Qxg6 {[%emt 0:00:07]} 40. fxg6 {[%emt 0:00:04]} Rc8 {[%emt 0:00:05] Weighted Error Value: White=0.99/Black=0.36} (40... Kf8 $142 41. Rh4 b1=Q 42. Rf4 Rg1 43. Kg3 Qxg6+ 44. Rg4 Qc2 45. Kh4 Rxg2 46. e4 Qd2 47. Rg3 Qh6+ 48. Kg4 Qg5+ 49. Kf3 Qxg3#) 0-1

[Event "Austrian Championship 2022"]
[Site "Vienna"]
[Date "2022.08.19"]
[Round "9.22"]
[White "Sucher, Johannes"]
[Black "Wagner, Leopold Franziskus"]
[Result "0-1"]
[ECO "A45"]
[WhiteElo "2164"]
[BlackElo "2080"]
[Annotator "TA"]
[PlyCount "66"]
[EventDate "2022.08.12"]
[EventType "swiss"]
[EventCountry "AUT"]
[SourceTitle "playchess.com"]
[Source "ChessBase"]
[SourceQuality "1"]
[TimeControl "40/5400+30:1800+30"]

{[%evp 9,66,10,10,8,12,12,18,7,24,0,0,0,0,-5,10,0,0,0,1,2,12,10,18,17,24,13,21,11,32,0,0,0,0,0,0,0,30,-33,0,0,0,-13,0,-836,-804,-774,-737,-975,-828,-1018,-969,-29991,-29992,-29992,-29993,-29993,-29990,-29994,-29995]} 1. d4 {[%emt 0:04:25]} Nf6 {[%emt 0:00:06]} 2. Bg5 {[%emt 0:00:22]} Ne4 {[%emt 0:00:08]} 3. h4 {[%emt 0:00:21]} h6 {[%emt 0:01:02]} 4. Bf4 {[%emt 0:01:42]} d5 {[%emt 0:00:09]} 5. Nd2 {[%emt 0:01:39]} Bf5 {[%emt 0:03:07]} 6. e3 {[%emt 0:04:56] A45: Trompowsky Attack.} Nxd2 {[%emt 0:02:57] was the old line (6...e6).} 7. Qxd2 {[%emt 0:00:14]} e6 {[%emt 0:00:31]} 8. Nf3 {[%emt 0:01:43] The position is equal.} Bd6 {[%emt 0:00:59]} 9. Bxd6 {[%emt 0:02:06]} Qxd6 {[%emt 0:00:59] [#]} 10. Bd3 $146 {[%emt 0:02:11]} ({Predecessor:} 10. O-O-O Nd7 11. Bd3 Bxd3 12. Qxd3 O-O-O 13. g3 Kb8 14. Kb1 Rc8 15. e4 Rhd8 16. e5 {0-1 (29) Gulde,J (1862)-King,A (1887) Bayern 2009}) 10... Bxd3 {[%emt 0:00:47]} 11. cxd3 {[%emt 0:02:43]} Nd7 {[%emt 0:00:05]} 12. Qc3 {[%emt 0:02:14]} c6 {[%emt 0:02:58]} 13. b4 {[%emt 0:02:29]} O-O {[%emt 0:00:56][%cal Oa7a5]} 14. O-O {[%emt 0:00:12]} f6 {[%emt 0:02:32]} 15. a4 {[%emt 0:03:19]} g5 {[%emt 0:09:21]} 16. Rfc1 {[%emt 0:09:51]} g4 {[%emt 0:05:28]} 17. Nd2 {[%emt 0:04:27]} g3 {[%emt 0:00:51]} 18. f4 {[%emt 0:03:18]} e5 {[%emt 0:06:10]} 19. f5 {[%emt 0:03:09]} Rae8 {[%emt 0:03:42]} 20. b5 {[%emt 0:02:33][%cal Rb5c6]} exd4 {[%emt 0:04:03]} 21. Qxd4 {[%emt 0:00:16]} c5 {[%emt 0:00:43]} 22. Qg4+ {[%emt 0:13:03]} Kf7 {[%emt 0:00:42][%cal Bg8f7,Bf7e7,Be7d8][%mdl 32]} (22... Kh8 $5 {[%cal Re8e3]}) 23. e4 {[%emt 0:08:50]} (23. Qh5+ $11 Ke7 24. d4 (24. Qxh6 Rh8 $11)) 23... Rg8 {[%emt 0:03:26] Chess con chili.} (23... Ne5 $5 {[%cal Re5g4]} 24. Qh5+ (24. Qxg3 $2 Rg8 $19) 24... Ke7 $11) 24. Qh5+ {[%emt 0:04:09]} Ke7 {[%emt 0:00:05] Threatens to win with ...dxe4.} 25. exd5 {[%emt 0:00:22]} ({Of course not} 25. Qxh6 Rh8 26. Qe3 (26. Qg7+ $2 Kd8 $19) 26... Rxh4 $17) 25... Kd8 {[%emt 0:01:16] aiming for ...Qf4.} 26. Qf7 $2 {[%emt 0:03:39][%mdl 8192]} (26. Qf3 $11 Ne5 27. Qe3) 26... Qf4 $19 {[%emt 0:02:50] ( -> ...Qd4+)} 27. Nf3 {[%emt 0:04:18] [#] Inhibits Qd4+.} Rgf8 $1 {[%emt 0:03:02]} 28. Qg7 {[%emt 0:01:57]} Re7 {[%emt 0:00:38]} 29. Qg6 {[%emt 0:00:21]} Ne5 {[%emt 0:00:40][%mdl 64] Deflection} 30. Nxe5 {[%emt 0:00:43]} Qd4+ {[%emt 0:00:06] Black mates.} 31. Kh1 {[%emt 0:00:41]} Qxh4+ {[%emt 0:00:01]} 32. Kg1 {[%emt 0:00:47]} Qh2+ {[%emt 0:00:12]} 33. Kf1 {[%emt 0:00:05]} Rxe5 {[%emt 0:00:05] Weighted Error Value: White=0.87/Black=0.12 (very precise)} 0-1

[Event "Austrian Championship 2022"]
[Site "Vienna"]
[Date "2022.08.19"]
[Round "9.23"]
[White "Spiesberger, Gerhard"]
[Black "Jethan, Martin"]
[Result "1-0"]
[ECO "D01"]
[WhiteElo "1972"]
[BlackElo "2103"]
[Annotator "TA"]
[PlyCount "65"]
[EventDate "2022.08.12"]
[EventType "swiss"]
[EventCountry "AUT"]
[SourceTitle "playchess.com"]
[Source "ChessBase"]
[SourceQuality "1"]
[TimeControl "40/5400+30:1800+30"]

{[%evp 9,64,6,0,0,0,-62,-40,-174,-154,-225,-213,-213,-181,-177,-156,-181,-132,-227,-227,-233,-223,-295,-301,-308,-285,-304,-305,-397,-293,-282,-279,-280,-237,-298,-257,-243,-232,-229,-217,-218,-220,-260,-240,-230,-139,-170,200,213,962,453,960,960,951,941,29995,29996,29999]} 1. d4 {[%emt 0:00:17]} Nf6 {[%emt 0:00:07]} 2. Nc3 {[%emt 0:00:20]} d5 {[%emt 0:00:12]} 3. Bg5 {[%emt 0:01:08]} c5 {[%emt 0:00:20]} 4. Bxf6 {[%emt 0:00:25]} gxf6 {[%emt 0:00:15]} 5. e4 {[%emt 0:01:17]} dxe4 {[%emt 0:01:52]} 6. dxc5 {[%emt 0:01:07] D01: Veresov Opening.} f5 {[%emt 0:02:17]} 7. Bc4 {[%emt 0:05:42]} ({White should play} 7. Qxd8+ $11 Kxd8 8. g4) 7... e6 $15 {[%emt 0:01:17] [#]} 8. Bb5+ $146 {[%emt 0:03:58] [#]} (8. Qxd8+ $15 Kxd8 9. O-O-O+ Nd7 10. g4) ({Predecessor:} 8. Qxd8+ Kxd8 9. Rd1+ Ke7 10. g4 fxg4 11. h3 Bg7 12. Nge2 Nd7 13. hxg4 Nxc5 14. Rh5 {0-1 (53) Ambrogi,A (2307)-Flores,D (2602) Buenos Aires 2011}) 8... Bd7 $1 $19 {[%emt 0:01:05]} 9. Qd4 {[%emt 0:01:53]} (9. g4 $17) 9... Rg8 {[%emt 0:05:30]} 10. O-O-O {[%emt 0:02:31]} Nc6 {[%emt 0:04:45]} 11. Qc4 {[%emt 0:01:44]} Qc7 {[%emt 0:05:17] Strongly threatening ...a6.} 12. g3 {[%emt 0:10:23]} O-O-O {[%emt 0:04:46]} (12... a6 $19 13. Ba4 Ne5 14. Bxd7+ Nxd7) 13. Nge2 {[%emt 0:04:22]} (13. f4 $17 {keeps fighting.}) 13... Ne5 $1 {[%emt 0:09:48][%csl LRc4,LRc5]} 14. Bxd7+ {[%emt 0:07:43]} Rxd7 {[%emt 0:01:24]} 15. Qa4 {[%emt 0:10:30]} Bxc5 {[%emt 0:07:15]} 16. Nb5 {[%emt 0:06:51]} Rxd1+ {[%emt 0:14:23]} 17. Rxd1 {[%emt 0:01:01]} Qb6 {[%emt 0:00:08]} 18. b4 {[%emt 0:06:04]} Be7 {[%emt 0:01:20] aiming for ...a6.} 19. Nxa7+ {[%emt 0:02:16]} Kb8 {[%emt 0:01:47]} 20. Nb5 {[%emt 0:00:16]} Rc8 {[%emt 0:07:05]} (20... Qxf2 $2 21. Ned4 Nc6 22. Nxc6+ bxc6 23. Nd4 Bg5+ 24. Kb1 $18) 21. Kb1 {[%emt 0:04:01]} Qa6 {[%emt 0:02:53]} (21... Qxf2 22. Ned4 Nc6 23. c3 $17) 22. Nec3 {[%emt 0:01:01]} Qxa4 {[%emt 0:08:08]} 23. Nxa4 {[%emt 0:01:01]} Bxb4 {[%emt 0:00:19]} 24. Nb6 {[%emt 0:05:47] [#]} Rf8 {[%emt 0:01:14]} 25. Na4 {[%emt 0:01:08]} Ba5 {[%emt 0:03:22]} 26. Kc1 {[%emt 0:01:38]} Ng4 {[%emt 0:07:35]} 27. Rd7 {[%emt 0:01:31]} Kc8 $4 {[%emt 0:06:02][%mdl 8192]} ({Resist} 27... Nxf2 28. Nc5 Rd8 29. Rxb7+ Ka8 30. Ra7+ (30. Rxf7 e3 $11) 30... Kb8 31. Nd7+ (31. Rxa5 Rd1+ 32. Kb2 e3 $16) 31... Rxd7 32. Rxd7 $18) (27... b6 $19 {and life is good for Black. ...Ne5 is the strong threat.} 28. Nd6 Nxf2 29. Rb7+ Ka8 30. Nxb6+ Bxb6 31. Rxb6 Rd8) 28. Nc5 $18 {[%emt 0:00:51] Na7+ would kill now.} Bb6 {[%emt 0:01:02] Prevents Na7+.} (28... Nxf2 {leads to mate.} 29. Na7+ Kb8 30. Rxb7+ Ka8 31. Nc6) (28... Ne5 29. Nd6+ (29. Rxb7 Kd8 $16) 29... Kb8) 29. Nd6+ {[%emt 0:00:11] Pair of Knights!} Kb8 {[%emt 0:00:17]} 30. Rxb7+ {[%emt 0:00:20]} Ka8 {[%emt 0:00:00]} 31. Rxb6 {[%emt 0:00:39] Intending Nd7 and mate.} Nxf2 {[%emt 0:00:26]} 32. Nd7 {[%emt 0:00:32][%cal Rb6a6]} Rd8 {[%emt 0:03:28]} 33. Ra6# {[%emt 0:00:10] Weighted Error Value: White=0.30/Black=0.75} 1-0